fUSD/lending_fUSD_20260412
["ID","MTS","AMOUNT","RATE_DAILY","PERIOD"]
[420320809,1775962273242,-1411.28,0.00038356,8]
[420320810,1775962273261,-500.0,0.00038356,8]
[420320811,1775962273274,-500.0,0.00038356,8]
[420320812,1775962273287,-500.0,0.00038356,8]
[420320813,1775962273307,-2114.94,0.00038356,8]
[420320814,1775962273321,-500.0,0.00038356,8]
[420320815,1775962273338,-914.28,0.00038356,8]
[420320816,1775962273352,-1751.08,0.00038356,8]
[420320817,1775962273362,-500.0,0.00038356,8]
[420320818,1775962273377,-500.0,0.00038356,8]
[420320819,1775962273391,-6121.34,0.00038356,8]
[420320820,1775962273401,-500.0,0.00038356,8]
[420320821,1775962273413,-500.0,0.00038356,8]
[420320822,1775962273448,-500.0,0.00038356,120]
[420320823,1775962273459,-1224.57,0.00038356,8]
[420320824,1775962273472,-1599.17,0.00038356,8]
[420320825,1775962273495,-797.95,0.00038356,8]
[420320826,1775962273505,-500.0,0.00038356,8]
[420320827,1775962273526,-1177.07,0.00038356,8]
[420320828,1775962273538,-500.0,0.00038356,8]
[420320829,1775962273548,-1120.56,0.00038356,8]
[420320830,1775962273594,-2587.31,0.00038356,8]
[420320831,1775962273605,-500.0,0.00038356,8]
[420320832,1775962273628,-619.48407703,0.00038356,8]
[420320833,1775962273644,-928.66,0.00038356,8]
[420320834,1775962273654,-1099.32,0.00038356,8]
[420320835,1775962273683,-517.3,0.00038356,8]
[420320836,1775962273697,-1268.97,0.00038356,8]
[420320837,1775962273710,-500.0,0.00038356,8]
[420320838,1775962273724,-500.0,0.00038356,8]
[420320839,1775962273734,-500.0,0.00038356,8]
[420320840,1775962273752,-500.0,0.00038356,8]
[420320841,1775962273761,-500.0,0.00038356,8]
[420320842,1775962273775,-500.0,0.00038356,8]
[420320843,1775962273797,-500.0,0.00038356,8]
[420320844,1775962273807,-500.0,0.00038356,8]
[420320845,1775962273817,-500.0,0.00038356,8]
[420320846,1775962273827,-544.48,0.00038356,8]
[420320847,1775962273842,-2951.25,0.00038356,8]
[420320848,1775962273855,-4525.89,0.00038356,8]
[420320849,1775962273865,-500.0,0.00038356,8]
[420320850,1775962273874,-575.16,0.00038356,8]
[420320851,1775962273884,-500.0,0.00038356,8]
[420320852,1775962273896,-1780.77,0.00038356,8]
[420320853,1775962273905,-500.0,0.00038356,8]
[420320854,1775962273916,-500.0,0.00038356,8]
[420320855,1775962273926,-500.0,0.00038356,8]
[420320856,1775962273942,-500.0,0.00038356,8]
[420320857,1775962273953,-2020.86,0.00038356,8]
[420320858,1775962273966,-902.82,0.00038356,8]
[420320859,1775962273985,-500.0,0.00038356,8]
[420320860,1775962274008,-500.0,0.00038356,8]
[420320861,1775962274028,-1786.62,0.00038356,8]
[420320862,1775962274059,-3598.81,0.00038356,8]
[420320863,1775962274084,-385.90181613,0.00038356,8]
[420320864,1775962274108,-500.0,0.00038356,8]
[420320865,1775962274128,-500.0,0.00038356,8]
[420320866,1775962274149,-500.0,0.00038356,8]
[420320867,1775962274183,-737.21,0.00038356,8]
[420320868,1775962274264,-500.0,0.00038356,8]
[420320869,1775962274289,-500.0,0.00038356,8]
[420320870,1775962274314,-947.5,0.00038356,8]
[420320871,1775962274391,-712.35,0.00038356,8]
[420320872,1775962274420,-500.0,0.00038356,8]
[420320873,1775962274439,-459.39917693,0.00038356,8]
[420320874,1775962274450,-582.54673444,0.00038356,8]
[420320875,1775962274476,-500.0,0.00038356,8]
[420320876,1775962274488,-510.17828941,0.00038356,8]
[420320877,1775962274498,-500.0,0.00038356,8]
[420320878,1775962274533,-500.0,0.00038356,8]
[420320879,1775962274544,-200.80265791,0.00038356,8]
[420320880,1775962274563,-535.39,0.00038356,8]
[420320881,1775962274573,-500.0,0.00038356,8]
[420320882,1775962274583,-646.86,0.00038356,8]
[420320883,1775962274598,-523.86,0.00038356,8]
[420320884,1775962274609,-500.0,0.00038356,8]
[420320885,1775962274622,-500.0,0.00038356,8]
[420320886,1775962274634,-1944.75,0.00038356,7]
[420320887,1775962274644,-500.0,0.00038356,8]
[420320888,1775962274660,-226.81107123,0.00038356,8]
[420320889,1775962274670,-535.95,0.00038356,8]
[420320890,1775962274683,-1055.21,0.00038356,8]
[420320891,1775962274695,-500.0,0.00038356,8]
[420320892,1775962274712,-500.0,0.00038356,8]
[420320893,1775962274731,-257.24240652,0.00038356,8]
[420320894,1775962274742,-500.0,0.00038356,8]
[420320895,1775962274761,-500.0,0.00038356,8]
[420320896,1775962274773,-500.0,0.00038356,8]
[420320897,1775962274791,-811.11,0.00038356,8]
[420320898,1775962274801,-4299.0,0.00038356,8]
[420320899,1775962274814,-216.64941269,0.00038356,8]
[420320900,1775962274824,-500.0,0.00038356,8]
[420320901,1775962274848,-1629.23,0.00038356,8]
[420320902,1775962274857,-500.0,0.00038356,8]
[420320903,1775962274868,-1167.83,0.00038356,8]
[420320904,1775962274879,-882.74,0.00038356,5]
[420320905,1775962274894,-500.0,0.00038356,8]
[420320906,1775962274917,-500.0,0.00038356,8]
[420320907,1775962274927,-1785.57,0.00038356,8]
[420320908,1775962274949,-530.32276881,0.00038356,8]
[420320909,1775962274958,-1806.77,0.00038356,8]
[420320910,1775962274973,-2573.97,0.00038356,8]
[420320911,1775962274989,-1292.74,0.00038356,8]
[420320912,1775962274999,-500.0,0.00038356,7]
[420320913,1775962275013,-500.0,0.00038356,8]
[420320914,1775962275030,-541.64167736,0.00038356,8]
[420320915,1775962275041,-500.0,0.00038356,8]
[420320916,1775962275052,-2727.17,0.00038356,8]
[420320917,1775962275064,-2644.5,0.00038356,8]
[420320918,1775962275076,-500.0,0.00038356,8]
[420320919,1775962275085,-1200.86,0.00038356,8]
[420320920,1775962275095,-647.40453376,0.00038356,8]
[420320921,1775962275107,-853.72,0.00038356,8]
[420320922,1775962275117,-500.0,0.00038356,8]
[420320923,1775962275127,-500.0,0.00038356,8]
[420320924,1775962275137,-1817.53,0.00038356,8]
[420320925,1775962275147,-1623.12,0.00038356,8]
[420320926,1775962275161,-500.0,0.00038356,8]
[420320927,1775962275176,-500.0,0.00038356,8]
[420320928,1775962275186,-49496.11,0.00038356,8]
[420320929,1775962275198,-1093.89,0.00038356,8]
[420320930,1775962275210,-2364.06,0.00038356,8]
[420320931,1775962275221,-2031.6,0.00038356,8]
[420320932,1775962275236,-500.0,0.00038356,8]
[420320933,1775962275248,-500.0,0.00038356,8]
[420320934,1775962275277,-500.0,0.00038356,8]
[420320935,1775962275305,-500.0,0.00038356,8]
[420320936,1775962275329,-500.0,0.00038356,8]
[420320937,1775962275344,-663.73,0.00038356,8]
[420320938,1775962275367,-1223.7,0.00038356,8]
[420320939,1775962275401,-500.0,0.00038356,8]
[420320940,1775962275411,-500.0,0.00038356,8]
[420320941,1775962275427,-2099.17,0.00038356,8]
[420320942,1775962275444,-651.75,0.00038356,8]
[420320943,1775962275455,-475.43599741,0.00038356,8]
[420320944,1775962275491,-500.0,0.00038356,8]
[420320945,1775962275502,-500.0,0.00038356,8]
[420320946,1775962275530,-506.96,0.00038356,8]
[420320947,1775962275558,-1583.13,0.00038356,8]
[420320948,1775962275584,-1318.79,0.00038356,8]
[420320949,1775962275596,-500.0,0.00038356,8]
[420320950,1775962275607,-3400.55,0.00038356,8]
[420320951,1775962275633,-565.24861817,0.00038356,8]
[420320952,1775962275644,-621.3747514,0.00038356,8]
[420320953,1775962275677,-500.0,0.00038356,8]
[420320954,1775962275689,-64047.73,0.00038356,8]
[420320955,1775962275714,-500.0,0.00038356,8]
[420320956,1775962275729,-500.0,0.00038356,8]
[420320957,1775962275750,-500.0,0.00038356,8]
[420320958,1775962275766,-500.0,0.00038356,8]
[420320959,1775962275793,-1766.54,0.00038356,8]
[420320960,1775962275807,-500.0,0.00038356,8]
[420320961,1775962275828,-500.0,0.00038356,8]
[420320962,1775962275850,-500.0,0.00038356,8]
[420320963,1775962275861,-4232.92,0.00038356,8]
[420320964,1775962276233,-500.0,0.00038356,8]
[420320965,1775962276306,-500.0,0.00038356,8]
[420320966,1775962276323,-1641.23,0.00038356,8]
[420320967,1775962276333,-1823.64,0.00038356,8]
[420320968,1775962276346,-1873.01,0.00038356,8]
[420320969,1775962276358,-1615.32,0.00038356,8]
[420320970,1775962276373,-500.0,0.00038356,8]
[420320971,1775962276385,-500.0,0.00038356,8]
[420320972,1775962276397,-500.0,0.00038356,8]
[420320973,1775962276409,-500.0,0.00038356,8]
[420320974,1775962276424,-500.0,0.00038356,8]
[420320975,1775962276435,-500.0,0.00038356,8]
[420320976,1775962276448,-565.82,0.00038356,8]
[420320977,1775962276465,-3329.99,0.00038356,8]
[420320978,1775962276497,-500.0,0.00038356,8]
[420320979,1775962276519,-2489.24,0.00038356,8]
[420320980,1775962276529,-618.23,0.00038356,8]
[420320981,1775962276549,-500.0,0.00038356,8]
[420320982,1775962276559,-2204.81,0.00038356,8]
[420320983,1775962276569,-500.0,0.00038356,8]
[420320984,1775962276586,-500.0,0.00038356,8]
[420320985,1775962276599,-564.08,0.00038356,8]
[420320986,1775962276609,-534.38,0.00038356,8]
[420320987,1775962276623,-3515.32,0.00038356,8]
[420320988,1775962276637,-500.0,0.00038356,8]
[420320989,1775962276651,-500.0,0.00038356,8]
[420320990,1775962276665,-2387.03,0.00038356,8]
[420320991,1775962276679,-1926.86,0.00038356,8]
[420320992,1775962276695,-713.8,0.00038356,8]
[420320993,1775962276709,-500.0,0.00038356,8]
[420320994,1775962276729,-500.0,0.00038356,8]
[420320995,1775962276742,-1000.0,0.00038356,8]
[420320996,1775962276765,-500.0,0.00038356,8]
[420320997,1775962276802,-500.0,0.00038356,8]
[420320998,1775962276823,-500.0,0.00038356,8]
[420320999,1775962276850,-398.47413541,0.00038356,8]
[420321000,1775962276866,-2181.58,0.00038356,8]
[420321001,1775962276891,-500.0,0.00038356,8]
[420321002,1775962276909,-522.78012035,0.00038356,8]
[420321003,1775962276919,-1083.91,0.00038356,8]
[420321004,1775962276943,-2849.34,0.00038356,8]
[420321005,1775962276955,-4719.47,0.00038356,8]
[420321006,1775962276964,-500.0,0.00038356,8]
[420321007,1775962276974,-488.15589279,0.00038356,8]
[420321008,1775962276989,-500.0,0.00038356,8]
[420321009,1775962277001,-500.0,0.00038356,8]
[420321010,1775962277011,-500.0,0.00038356,8]
[420321011,1775962277021,-500.0,0.00038356,8]
[420321012,1775962277031,-500.0,0.00038356,8]
[420321013,1775962277045,-4243.2,0.00038356,8]
[420321014,1775962277055,-918.45,0.00038356,8]
[420321015,1775962277065,-500.0,0.00038356,8]
[420321016,1775962277075,-3098.1,0.00038356,8]
[420321017,1775962277086,-1136.94,0.00038356,8]
[420321018,1775962277096,-1222.85,0.00038356,8]
[420321019,1775962277107,-1037.91,0.00038356,8]
[420321020,1775962277117,-500.0,0.00038356,8]
[420321021,1775962277128,-544.16403102,0.00038356,8]
[420321022,1775962277138,-500.0,0.00038356,8]
[420321023,1775962277148,-500.0,0.00038356,8]
[420321024,1775962277162,-500.0,0.00038356,8]
[420321025,1775962277172,-1381.72,0.00038356,8]
[420321026,1775962277187,-532.50360083,0.00038356,8]
[420321027,1775962277205,-500.0,0.00038356,8]
[420321028,1775962277223,-1370.01,0.00038356,8]
[420321029,1775962277237,-2672.82,0.00038356,8]
[420321030,1775962277257,-693.33,0.00038356,8]
[420321031,1775962277276,-719.75,0.00038356,8]
[420321032,1775962277287,-557.59,0.00038356,8]
[420321033,1775962277297,-714.68,0.00038356,8]
[420321034,1775962277309,-500.0,0.00038356,8]
[420321035,1775962277320,-933.97,0.00038356,8]
[420321036,1775962277330,-2900.0,0.00038356,120]
[420321037,1775962277342,-596.07585783,0.00038356,8]
[420321038,1775962277353,-2960.63,0.00038356,8]
[420321039,1775962277364,-500.0,0.00038356,8]
[420321040,1775962277375,-2767.62,0.00038356,8]
[420321041,1775962277386,-1028.83,0.00038356,8]
[420321042,1775962277398,-500.0,0.00038356,8]
[420321043,1775962277409,-500.0,0.00038356,8]
[420321044,1775962277428,-625.81,0.00038356,8]
[420321045,1775962277438,-993.82,0.00038356,8]
[420321046,1775962277447,-500.0,0.00038356,8]
[420321047,1775962277464,-500.0,0.00038356,8]
[420321048,1775962277476,-500.0,0.00038356,8]
[420321049,1775962277486,-603.2821052,0.00038356,8]
[420321050,1775962277503,-1039.59,0.00038356,8]
[420321051,1775962277523,-500.0,0.00038356,8]
[420321052,1775962277533,-17970.81,0.00038356,8]
[420321053,1775962277552,-500.0,0.00038356,8]
[420321054,1775962277569,-1326.65,0.00038356,8]
[420321055,1775962277580,-602.28,0.00038356,8]
[420321056,1775962277596,-2316.84,0.00038356,8]
[420321057,1775962277615,-500.0,0.00038356,8]
[420321058,1775962277624,-850.68,0.00038356,8]
[420321059,1775962277659,-500.0,0.00038356,8]
[420321060,1775962277671,-1406.41,0.00038356,8]
[420321061,1775962277684,-500.0,0.00038356,8]
[420321062,1775962277704,-1777.58,0.00038356,8]
[420321063,1775962277732,-500.0,0.00038356,8]
[420321064,1775962277741,-151.0,0.00038356,120]
[420321065,1775962277752,-2035.99,0.00038356,8]
[420321066,1775962277763,-1059.46,0.00038356,8]
[420321067,1775962277788,-2681.16,0.00038356,8]
[420321068,1775962277797,-500.0,0.00038356,8]
[420321069,1775962277807,-500.0,0.00038356,8]
[420321070,1775962277836,-638.85455634,0.00038356,8]
[420321071,1775962277864,-1597.03,0.00038356,8]
[420321072,1775962277875,-800.53,0.00038356,8]
[420321073,1775962277897,-500.0,0.00038356,8]
[420321074,1775962277914,-151.0,0.00038356,120]
[420321075,1775962277926,-3424.64,0.00038356,8]
[420321076,1775962277936,-512.38,0.00038356,8]
[420321077,1775962277951,-500.0,0.00038356,8]
[420321078,1775962277961,-990.39,0.00038356,8]
[420321079,1775962277976,-151.0,0.00038356,120]
[420321080,1775962277997,-1479.87,0.00038356,8]
[420321081,1775962278007,-924.61,0.00038356,8]
[420321082,1775962278018,-500.0,0.00038356,8]
[420321083,1775962278028,-151.0,0.00038356,120]
[420321084,1775962278046,-559.61,0.00038356,8]
[420321085,1775962278058,-500.0,0.00038356,8]
[420321086,1775962278071,-1723.86,0.00038356,8]
[420321087,1775962278101,-500.0,0.00038356,8]
[420321088,1775962278119,-500.0,0.00038356,8]
[420321089,1775962278136,-1580.53,0.00038356,8]
[420321090,1775962278148,-1256.37,0.00038356,8]
[420321091,1775962278164,-500.0,0.00038356,8]
[420321092,1775962278194,-557.38,0.00038356,8]
[420321093,1775962278203,-1242.22,0.00038356,8]
[420321094,1775962278216,-500.0,0.00038356,8]
[420321095,1775962278242,-2308.57,0.00038356,8]
[420321096,1775962278251,-500.0,0.00038356,8]
[420321097,1775962278273,-500.0,0.00038356,8]
[420321098,1775962278285,-734.0,0.00038356,8]
[420321099,1775962278295,-500.0,0.00038356,8]
[420321100,1775962278304,-500.0,0.00038356,8]
[420321101,1775962278335,-614.41,0.00038356,8]
[420321102,1775962278351,-500.0,0.00038356,8]
[420321103,1775962278361,-500.0,0.00038356,8]
[420321104,1775962278378,-500.0,0.00038356,8]
[420321105,1775962278408,-1276.39,0.00038356,8]
[420321106,1775962278449,-500.0,0.00038356,8]
[420321107,1775962278514,-500.0,0.00038356,8]
[420321108,1775962278526,-500.0,0.00038356,8]
[420321109,1775962278557,-500.0,0.00038356,8]
[420321110,1775962278577,-500.0,0.00038356,8]
[420321111,1775962278621,-500.0,0.00038356,8]
[420321112,1775962278634,-500.0,0.00038356,8]
[420321113,1775962278650,-500.0,0.00038356,8]
[420321114,1775962278675,-364.119888,0.00038356,120]
[420321115,1775962278699,-500.0,0.00038356,8]
[420321116,1775962278713,-364.119888,0.00038356,120]
[420321117,1775962278750,-500.0,0.00038356,8]
[420321118,1775962278786,-500.0,0.00038356,8]
[420321119,1775962278805,-508.92,0.00038356,8]
[420321120,1775962278818,-500.0,0.00038356,8]
[420321121,1775962278837,-364.119888,0.00038356,120]
[420321122,1775962278854,-281.154448,0.00038356,120]
[420321123,1775962278871,-364.119888,0.00038356,120]
[420321124,1775962278890,-372.18675537,0.00038356,8]
[420321125,1775962278901,-281.154448,0.00038356,120]
[420321126,1775962278929,-1958.72,0.00038356,8]
[420321127,1775962278940,-500.0,0.00038356,8]
[420321128,1775962278951,-500.0,0.00038356,8]
[420321129,1775962278974,-281.154448,0.00038356,120]
[420321130,1775962278986,-345.20853188,0.00038356,8]
[420321131,1775962278998,-281.154448,0.00038356,120]
[420321132,1775962279019,-364.119888,0.00038356,120]
[420321133,1775962279029,-151.0,0.00038356,120]
[420321134,1775962279050,-364.119888,0.00038356,120]
[420321135,1775962279060,-151.0,0.00038356,120]
[420321136,1775962279070,-2715.08,0.00038356,8]
[420321137,1775962279089,-8438.04,0.00038356,8]
[420321138,1775962279099,-500.0,0.00038356,8]
[420321139,1775962279119,-500.0,0.00038356,8]
[420321140,1775962279130,-281.154448,0.00038356,120]
[420321141,1775962279142,-281.154448,0.00038356,120]
[420321142,1775962279159,-364.119888,0.00038356,120]
[420321143,1775962279169,-151.0,0.00038356,120]
[420321144,1775962279181,-500.0,0.00038356,8]
[420321145,1775962279194,-364.119896,0.00038356,120]
[420321146,1775962279216,-151.0,0.00038356,120]
[420321147,1775962279226,-500.0,0.00038356,8]
[420321148,1775962279239,-1362.26,0.00038356,8]
[420321149,1775962279250,-281.154448,0.00038356,120]
[420321150,1775962279259,-500.0,0.00038356,8]
[420321151,1775962279270,-500.0,0.00038356,8]
[420321152,1775962279283,-318.0,0.00038356,15]
[420321153,1775962279295,-750.94,0.00038382,8]
[420321154,1775962279304,-200000.0,0.00038383,120]
[420321155,1775962279314,-757.93,0.00038408,30]
[420321156,1775962279328,-3207.34375653,0.00038475,2]
[420321157,1775962279340,-208.4759,0.00038493,8]
[420321158,1775962279350,-2391.337,0.00038513,51]
[420321159,1775962279364,-9512.80542095,0.0003853,2]
[420321160,1775962279374,-2000.0,0.000386,2]
[420321161,1775962279383,-155.6365,0.000386,2]
[420321162,1775962279393,-175.62,0.00038603,120]
[420321163,1775962279405,-500.0,0.00038603,120]
[420321164,1775962279415,-7475.02039255,0.00038629,8]
[420321165,1775962279426,-7475.02039254,0.00038629,8]
[420321166,1775962279436,-684.809141,0.0003863,8]
[420321167,1775962279447,-332.857305,0.0003863,8]
[420321168,1775962279457,-500.0,0.0003863,8]
[420321169,1775962279467,-500.0,0.0003863,8]
[420321170,1775962279480,-500.0,0.0003863,8]
[420321171,1775962279491,-500.0,0.0003863,8]
[420321172,1775962279501,-500.0,0.0003863,8]
[420321173,1775962279510,-500.0,0.0003863,2]
[420321174,1775962279521,-500.0,0.0003863,8]
[420321175,1775962279533,-500.0,0.0003863,8]
[420321176,1775962279547,-500.0,0.0003863,8]
[420321177,1775962279557,-500.0,0.0003863,8]
[420321178,1775962279572,-500.0,0.0003863,8]
[420321179,1775962279584,-500.0,0.0003863,8]
[420321180,1775962279594,-500.0,0.0003863,8]
[420321181,1775962279608,-500.0,0.0003863,8]
[420321182,1775962279621,-308.14431835,0.0003863,8]
[420321183,1775962279631,-322.85369324,0.0003863,8]
[420321184,1775962279641,-300.0,0.0003863,2]
[420321185,1775962279661,-2376.66,0.0003863,8]
[420321186,1775962279673,-500.0,0.0003863,8]
[420321187,1775962279698,-500.0,0.0003863,8]
[420321188,1775962279712,-500.0,0.0003863,8]
[420321189,1775962279740,-565.85963481,0.0003863,8]
[420321190,1775962279771,-500.0,0.0003863,8]
[420321191,1775962279782,-500.0,0.0003863,8]
[420321192,1775962279803,-500.0,0.0003863,8]
[420321193,1775962279823,-500.0,0.0003863,8]
[420321194,1775962279836,-500.0,0.0003863,8]
[420321195,1775962279848,-500.0,0.0003863,8]
[420321196,1775962279858,-223.15428184,0.0003863,8]
[420321197,1775962279869,-500.0,0.0003863,8]
[420321198,1775962279883,-500.0,0.0003863,8]
[420321199,1775962279902,-500.0,0.0003863,8]
[420321200,1775962279914,-1559.17,0.0003863,8]
[420321201,1775962279923,-500.0,0.0003863,8]
[420321202,1775962279936,-500.0,0.0003863,8]
[420321203,1775962279951,-461.76417278,0.0003863,8]
[420321204,1775962279962,-635.06743769,0.0003863,8]
[420321205,1775962279990,-837.19,0.0003863,8]
[420321206,1775962280091,-500.0,0.0003863,8]
[420321207,1775962280102,-500.0,0.0003863,8]
[420321208,1775962280116,-500.0,0.0003863,8]
[420321209,1775962280135,-500.0,0.0003863,8]
[420321210,1775962280155,-500.0,0.0003863,8]
[420321211,1775962280164,-500.0,0.0003863,8]
[420321212,1775962280175,-500.0,0.0003863,8]
[420321213,1775962280190,-2986.87,0.0003863,8]
[420321214,1775962280209,-500.0,0.0003863,8]
[420321215,1775962280218,-500.0,0.0003863,8]
[420321216,1775962280230,-170.79907093,0.0003863,8]
[420321217,1775962280246,-500.0,0.0003863,8]
[420321218,1775962280256,-500.0,0.0003863,8]
[420321219,1775962280267,-240.35958527,0.0003863,8]
[420321220,1775962280279,-500.0,0.0003863,8]
[420321221,1775962280292,-500.0,0.0003863,8]
[420321222,1775962280303,-1524.47,0.0003863,8]
[420321223,1775962280319,-176.39018439,0.0003863,8]
[420321224,1775962280329,-780.38,0.0003863,8]
[420321225,1775962280342,-500.0,0.0003863,8]
[420321226,1775962280359,-163.00098163,0.0003863,8]
[420321227,1775962280369,-586.12,0.0003863,8]
[420321228,1775962280396,-1014.57,0.0003863,8]
[420321229,1775962280419,-500.0,0.0003863,8]
[420321230,1775962280434,-500.0,0.0003863,8]
[420321231,1775962280468,-567.35744808,0.0003863,8]
[420321232,1775962280478,-500.0,0.0003863,8]
[420321233,1775962280509,-500.0,0.0003863,8]
[420321234,1775962280518,-500.0,0.0003863,8]
[420321235,1775962280547,-500.0,0.0003863,8]
[420321236,1775962280557,-2620.57,0.0003863,8]
[420321237,1775962280566,-500.0,0.0003863,8]
[420321238,1775962280579,-500.0,0.0003863,8]
[420321239,1775962280593,-500.0,0.0003863,8]
[420321240,1775962280602,-1507.7,0.0003863,8]
[420321241,1775962280625,-500.0,0.0003863,8]
[420321242,1775962280642,-500.0,0.0003863,8]
[420321243,1775962280665,-511.46492087,0.0003863,8]
[420321244,1775962280675,-338.10373642,0.0003863,8]
[420321245,1775962280701,-500.0,0.0003863,8]
[420321246,1775962280720,-500.0,0.0003863,8]
[420321247,1775962280736,-950.97,0.0003863,8]
[420321248,1775962280750,-500.0,0.0003863,8]
[420321249,1775962280770,-500.0,0.0003863,8]
[420321250,1775962280797,-500.0,0.0003863,8]
[420321251,1775962280822,-1476.32,0.0003863,8]
[420321252,1775962280836,-500.0,0.0003863,8]
[420321253,1775962280847,-500.0,0.0003863,8]
[420321254,1775962280870,-1513.15,0.0003863,8]
[420321255,1775962280880,-500.0,0.0003863,8]
[420321256,1775962280890,-500.0,0.0003863,8]
[420321257,1775962280911,-500.0,0.0003863,8]
[420321258,1775962280922,-1343.6,0.0003863,8]
[420321259,1775962280932,-1386.01,0.0003863,8]
[420321260,1775962280944,-500.0,0.0003863,8]
[420321261,1775962280962,-500.0,0.0003863,8]
[420321262,1775962280972,-500.0,0.0003863,8]
[420321263,1775962280984,-462.59290623,0.0003863,8]
[420321264,1775962280994,-177.16765404,0.0003863,8]
[420321265,1775962281011,-670.38,0.0003863,8]
[420321266,1775962281023,-685.72,0.0003863,8]
[420321267,1775962281033,-500.0,0.0003863,8]
[420321268,1775962281045,-500.0,0.0003863,8]
[420321269,1775962281060,-500.0,0.0003863,8]
[420321270,1775962281093,-500.0,0.0003863,8]
[420321271,1775962281104,-500.0,0.0003863,8]
[420321272,1775962281121,-500.0,0.0003863,8]
[420321273,1775962281140,-500.0,0.0003863,8]
[420321274,1775962281150,-500.0,0.0003863,8]
[420321275,1775962281178,-500.0,0.0003863,8]
[420321276,1775962281189,-500.0,0.0003863,8]
[420321277,1775962281206,-500.0,0.0003863,8]
[420321278,1775962281249,-500.0,0.0003863,8]
[420321279,1775962281260,-539.74217556,0.0003863,8]
[420321280,1775962281279,-1664.27,0.0003863,8]
[420321281,1775962281291,-500.0,0.0003863,8]
[420321282,1775962281300,-209.77799062,0.0003863,8]
[420321283,1775962281318,-500.0,0.0003863,8]
[420321284,1775962281333,-500.0,0.0003863,8]
[420321285,1775962281342,-500.0,0.0003863,8]
[420321286,1775962281356,-155.80813734,0.0003863,8]
[420321287,1775962281371,-500.0,0.0003863,8]
[420321288,1775962281383,-500.0,0.0003863,8]
[420321289,1775962281392,-500.0,0.0003863,8]
[420321290,1775962281403,-300.0,0.0003863,2]
[420321291,1775962281434,-886.99,0.0003863,8]
[420321292,1775962281445,-739.5,0.0003863,8]
[420321293,1775962281458,-500.0,0.0003863,8]
[420321294,1775962281475,-1131.82,0.0003863,8]
[420321295,1775962281489,-500.0,0.0003863,8]
[420321296,1775962281502,-615.550663,0.0003863,8]
[420321297,1775962281518,-1605.38,0.0003863,8]
[420321298,1775962281533,-500.0,0.0003863,8]
[420321299,1775962281561,-158.498958,0.0003863,8]
[420321300,1775962281570,-500.0,0.0003863,8]
[420321301,1775962281586,-154.23054683,0.0003863,8]
[420321302,1775962281608,-500.0,0.0003863,8]
[420321303,1775962281622,-1413.94,0.0003863,8]
[420321304,1775962281658,-500.0,0.0003863,8]
[420321305,1775962281684,-640.33937099,0.0003863,8]
[420321306,1775962281710,-1597.0,0.0003863,8]
[420321307,1775962281720,-500.0,0.0003863,8]
[420321308,1775962281743,-614.91,0.0003863,8]